[Event "Champions Chess Tour Finals 2024"]
[Date "2024.12.17"]
[White "Firouzja, Alireza"]
[Black "Lazavik, Denis"]
[WhiteElo "2756"]
[BlackElo "2553"]
[Round "3.1"]
[Result "1-0"]
[TimeControl "600+2"]

1. e4 {[%clk 0:10:03]} e5 {[%clk 0:10:03]} 2. Nf3 {[%clk 0:10:04]} Nc6 {[%clk
0:10:03]} 3. Bc4 {[%clk 0:10:05]} Nf6 {[%clk 0:10:04]} 4. d3 {[%clk 0:10:06]}
Be7 {[%clk 0:10:05]} 5. O-O {[%clk 0:10:06]} O-O {[%clk 0:10:05]} 6. Nc3 {[%clk
0:10:06]} d6 {[%clk 0:10:05]} 7. a4 {[%clk 0:10:08]} Na5 {[%clk 0:10:04]} 8. Ba2
{[%clk 0:10:04]} Nc6 {[%clk 0:10:04]} 9. Re1 {[%clk 0:09:10]} Be6 {[%clk
0:09:50]} 10. a5 {[%clk 0:08:14]} Bxa2 {[%clk 0:09:22]} 11. Rxa2 {[%clk
0:08:15]} b6 {[%clk 0:09:14]} 12. axb6 {[%clk 0:07:45]} axb6 {[%clk 0:09:15]}
13. Rxa8 {[%clk 0:07:47]} Qxa8 {[%clk 0:09:15]} 14. Bg5 {[%clk 0:07:47]} h6
{[%clk 0:09:03]} 15. Bxf6 {[%clk 0:07:24]} Bxf6 {[%clk 0:09:03]} 16. Nd5 {[%clk
0:07:25]} Bd8 {[%clk 0:08:56]} 17. Qa1 {[%clk 0:07:25]} Qb7 {[%clk 0:08:42]} 18.
Qa2 {[%clk 0:07:18]} Ne7 {[%clk 0:08:36]} 19. Ne3 {[%clk 0:07:13]} c6 {[%clk
0:07:26]} 20. Ra1 {[%clk 0:06:58]} b5 {[%clk 0:06:48]} 21. Qa7 {[%clk 0:06:59]}
Qc8 {[%clk 0:06:46]} 22. c4 {[%clk 0:06:58]} bxc4 {[%clk 0:06:16]} 23. dxc4
{[%clk 0:05:32]} f5 {[%clk 0:06:07]} 24. c5 {[%clk 0:05:26]} dxc5 {[%clk
0:04:44]} 25. Nxe5 {[%clk 0:05:03]} fxe4 {[%clk 0:04:15]} 26. Nd7 {[%clk
0:04:28]} Re8 {[%clk 0:03:26]} 27. Qa2+ {[%clk 0:03:58]} Kh8 {[%clk 0:03:12]}
28. Qf7 {[%clk 0:03:53]} Rg8 {[%clk 0:02:19]} 29. Rd1 {[%clk 0:03:38]} Nd5
{[%clk 0:01:36]} 30. Nxd5 {[%clk 0:02:57]} cxd5 {[%clk 0:01:37]} 31. Qxd5 {[%clk
0:02:53]} Bg5 {[%clk 0:00:52]} 32. Ne5 {[%clk 0:02:29]} Bf6 {[%clk 0:00:12]} 33.
Nf7+ {[%clk 0:01:50]} Kh7 {[%clk 0:00:13]} 34. Qxe4+ {[%clk 0:01:51]} g6 {[%clk
0:00:14]} 35. h4 {[%clk 0:00:34]} Qf5 {[%clk 0:00:09]} 36. Qe3 {[%clk 0:00:13]}
Bg7 {[%clk 0:00:08]} 37. Nd6 {[%clk 0:00:12]} Qg4 {[%clk 0:00:08]} 38. Rd5
{[%clk 0:00:06]} Qxh4 {[%clk 0:00:08]} 39. g3 {[%clk 0:00:06]} Qg4 {[%clk
0:00:08]} 40. Ne4 {[%clk 0:00:06]} Rf8 {[%clk 0:00:07]} 41. Rxc5 {[%clk
0:00:06]} Qf3 {[%clk 0:00:05]} 42. Qxf3 {[%clk 0:00:06]} Rxf3 {[%clk 0:00:06]}
43. b4 {[%clk 0:00:07]} Rb3 {[%clk 0:00:07]} 44. b5 {[%clk 0:00:07]} Bd4 {[%clk
0:00:07]} 45. Rd5 {[%clk 0:00:08]} Bg7 {[%clk 0:00:05]} 46. Kg2 {[%clk 0:00:08]}
g5 {[%clk 0:00:04]} 47. g4 {[%clk 0:00:05]} Bf8 {[%clk 0:00:04]} 48. Ng3 {[%clk
0:00:04]} Kg6 {[%clk 0:00:05]} 49. Nf5 {[%clk 0:00:05]} h5 {[%clk 0:00:06]} 50.
Nd4 {[%clk 0:00:06]} Rb1 {[%clk 0:00:05]} 51. gxh5+ {[%clk 0:00:04]} Kxh5 {[%clk
0:00:06]} 52. Ne6 {[%clk 0:00:06]} Be7 {[%clk 0:00:08]} 53. Nd4 {[%clk 0:00:04]}
Rb2 {[%clk 0:00:07]} 54. Nf5 {[%clk 0:00:05]} Bf6 {[%clk 0:00:08]} 55. Nd6
{[%clk 0:00:06]} Be7 {[%clk 0:00:08]} 56. Nc4 {[%clk 0:00:06]} Rb4 {[%clk
0:00:08]} 57. Ne5 {[%clk 0:00:07]} Rb2 {[%clk 0:00:07]} 58. Nd3 {[%clk 0:00:06]}
Rb1 {[%clk 0:00:07]} 59. Kf3 {[%clk 0:00:07]} Kg6 {[%clk 0:00:05]} 60. Ke4
{[%clk 0:00:07]} Kf6 {[%clk 0:00:07]} 61. Kd4 {[%clk 0:00:05]} Ke6 {[%clk
0:00:07]} 62. Kc4 {[%clk 0:00:06]} Bd6 {[%clk 0:00:07]} 63. Rxg5 {[%clk
0:00:06]} Be7 {[%clk 0:00:04]} 64. Re5+ {[%clk 0:00:07]} Kd6 {[%clk 0:00:05]}
65. Rd5+ {[%clk 0:00:07]} Ke6 {[%clk 0:00:06]} 66. f4 {[%clk 0:00:06]} Bf6
{[%clk 0:00:05]} 67. f5+ {[%clk 0:00:06]} Ke7 {[%clk 0:00:06]} 68. Rc5 {[%clk
0:00:05]} Bg5 {[%clk 0:00:06]} 69. Rc6 {[%clk 0:00:05]} Bh4 {[%clk 0:00:04]} 70.
Re6+ {[%clk 0:00:06]} Kd7 {[%clk 0:00:04]} 71. Nc5+ {[%clk 0:00:06]} Kc7 {[%clk
0:00:05]} 72. Rc6+ {[%clk 0:00:06]} Kd8 {[%clk 0:00:05]} 73. b6 {[%clk 0:00:05]}
Rc1+ {[%clk 0:00:06]} 74. Kb5 {[%clk 0:00:06]} Rb1+ {[%clk 0:00:06]} 75. Ka6
{[%clk 0:00:08]} Ra1+ {[%clk 0:00:06]} 76. Kb5 {[%clk 0:00:05]} Rb1+ {[%clk
0:00:07]} 77. Kc4 {[%clk 0:00:07]} Rc1+ {[%clk 0:00:08]} 78. Kd5 {[%clk
0:00:08]} Rd1+ {[%clk 0:00:10]} 79. Ke6 {[%clk 0:00:08]} Re1+ {[%clk 0:00:10]}
80. Kf7 {[%clk 0:00:10]} Bg3 {[%clk 0:00:05]} 81. b7 {[%clk 0:00:10]} Re7+
{[%clk 0:00:06]} 82. Kg6 {[%clk 0:00:11]} Re3 {[%clk 0:00:03]} 83. Rc8+ {[%clk
0:00:10]} Ke7 {[%clk 0:00:05]} 84. f6+ {[%clk 0:00:11]} 1-0

[Variant "Standard"]
[Site "Europe Echecs"]

[Event "Champions Chess Tour Finals 2024"]
[Date "2024.12.17"]
[White "Keymer, Vincent"]
[Black "Aronian, Levon"]
[WhiteElo "2649"]
[BlackElo "2818"]
[Round "3.1"]
[Result "1/2-1/2"]
[TimeControl "600+2"]

1. c4 {[%clk 0:10:02]} Nf6 {[%clk 0:10:00]} 2. Nf3 {[%clk 0:10:02]} b6 {[%clk
0:09:56]} 3. d4 {[%clk 0:09:58]} e6 {[%clk 0:09:56]} 4. g3 {[%clk 0:09:59]} Ba6
{[%clk 0:09:56]} 5. b3 {[%clk 0:09:54]} d5 {[%clk 0:09:54]} 6. Bg2 {[%clk
0:09:37]} Bb4+ {[%clk 0:09:55]} 7. Bd2 {[%clk 0:09:36]} Bd6 {[%clk 0:09:55]} 8.
O-O {[%clk 0:09:25]} O-O {[%clk 0:09:55]} 9. Nc3 {[%clk 0:07:02]} Nbd7 {[%clk
0:09:55]} 10. e4 {[%clk 0:06:51]} Nxe4 {[%clk 0:09:56]} 11. Nxe4 {[%clk
0:06:51]} dxe4 {[%clk 0:09:57]} 12. Ng5 {[%clk 0:06:53]} Bb7 {[%clk 0:09:58]}
13. Nxe4 {[%clk 0:06:49]} f5 {[%clk 0:09:59]} 14. Ng5 {[%clk 0:05:51]} Bxg2
{[%clk 0:09:58]} 15. Kxg2 {[%clk 0:05:48]} Qf6 {[%clk 0:08:50]} 16. Nf3 {[%clk
0:05:48]} f4 {[%clk 0:08:37]} 17. Qe2 {[%clk 0:05:16]} e5 {[%clk 0:07:29]} 18.
dxe5 {[%clk 0:04:38]} Nxe5 {[%clk 0:07:22]} 19. Bc3 {[%clk 0:03:43]} Rae8 {[%clk
0:07:23]} 20. Bxe5 {[%clk 0:03:17]} Bxe5 {[%clk 0:07:24]} 21. Rae1 {[%clk
0:03:18]} fxg3 {[%clk 0:06:43]} 22. fxg3 {[%clk 0:02:48]} Qc6 {[%clk 0:06:40]}
23. Qe4 {[%clk 0:02:23]} Qxe4 {[%clk 0:06:29]} 24. Rxe4 {[%clk 0:02:24]} Bf6
{[%clk 0:06:27]} 25. Rfe1 {[%clk 0:02:03]} Rd8 {[%clk 0:05:54]} 26. g4 {[%clk
0:01:57]} h6 {[%clk 0:05:30]} 27. h4 {[%clk 0:01:56]} a5 {[%clk 0:04:46]} 28.
R1e2 {[%clk 0:01:27]} Rd6 {[%clk 0:04:14]} 29. g5 {[%clk 0:01:16]} hxg5 {[%clk
0:04:15]} 30. hxg5 {[%clk 0:01:17]} Bc3 {[%clk 0:03:56]} 31. Re7 {[%clk
0:01:14]} Rf7 {[%clk 0:03:48]} 32. Kg3 {[%clk 0:00:10]} g6 {[%clk 0:02:56]} 33.
R2e6 {[%clk 0:00:07]} Rxe6 {[%clk 0:02:24]} 34. Rxe6 {[%clk 0:00:08]} Kh7 {[%clk
0:02:25]} 35. Nh4 {[%clk 0:00:07]} Rg7 {[%clk 0:02:11]} 36. Kg4 {[%clk 0:00:08]}
Bd4 {[%clk 0:01:54]} 37. Nf3 {[%clk 0:00:08]} Rd7 {[%clk 0:01:39]} 38. Nd2
{[%clk 0:00:07]} Kg7 {[%clk 0:01:33]} 39. Ne4 {[%clk 0:00:06]} Kf7 {[%clk
0:01:25]} 40. Rc6 {[%clk 0:00:07]} Be5 {[%clk 0:01:25]} 41. c5 {[%clk 0:00:07]}
b5 {[%clk 0:01:19]} 42. Ra6 {[%clk 0:00:08]} a4 {[%clk 0:01:20]} 43. bxa4 {[%clk
0:00:07]} Rd4 {[%clk 0:01:22]} 44. Kf3 {[%clk 0:00:07]} Rxa4 {[%clk 0:01:05]}
45. Rxa4 {[%clk 0:00:08]} bxa4 {[%clk 0:01:06]} 46. Nd2 {[%clk 0:00:06]} Bd4
{[%clk 0:01:07]} 47. c6 {[%clk 0:00:05]} Ke6 {[%clk 0:00:58]} 48. Ke4 {[%clk
0:00:07]} Bc5 {[%clk 0:00:49]} 49. Nf3 {[%clk 0:00:08]} Be7 {[%clk 0:00:50]} 50.
Ne5 {[%clk 0:00:08]} Bxg5 {[%clk 0:00:50]} 51. Nxg6 {[%clk 0:00:09]} Kd6 {[%clk
0:00:51]} 52. Ne5 {[%clk 0:00:09]} Bf6 {[%clk 0:00:51]} 53. Nc4+ {[%clk
0:00:07]} Kxc6 {[%clk 0:00:47]} 54. Kd3 {[%clk 0:00:08]} Kc5 {[%clk 0:00:47]}
55. Nd2 {[%clk 0:00:07]} Kb4 {[%clk 0:00:42]} 56. Kc2 {[%clk 0:00:08]} c5 {[%clk
0:00:28]} 57. Ne4 {[%clk 0:00:09]} Be5 {[%clk 0:00:23]} 58. Nf2 {[%clk 0:00:08]}
c4 {[%clk 0:00:24]} 59. Ne4 {[%clk 0:00:06]} Bd4 {[%clk 0:00:15]} 60. Nd2 {[%clk
0:00:07]} Bc5 {[%clk 0:00:13]} 61. Ne4 {[%clk 0:00:08]} Be3 {[%clk 0:00:15]} 62.
Nf6 {[%clk 0:00:07]} Bd4 {[%clk 0:00:15]} 63. Ne4 {[%clk 0:00:08]} Ka3 {[%clk
0:00:15]} 64. Kb1 {[%clk 0:00:09]} c3 {[%clk 0:00:17]} 65. Ng3 {[%clk 0:00:06]}
Bf6 {[%clk 0:00:12]} 66. Ne2 {[%clk 0:00:06]} Be5 {[%clk 0:00:13]} 67. Nc1
{[%clk 0:00:05]} Bf4 {[%clk 0:00:14]} 68. Nd3 {[%clk 0:00:06]} Be3 {[%clk
0:00:13]} 69. Ne5 {[%clk 0:00:07]} Bd4 {[%clk 0:00:11]} 70. Nd3 {[%clk 0:00:07]}
Be3 {[%clk 0:00:07]} 71. Ne5 {[%clk 0:00:08]} Bf4 {[%clk 0:00:08]} 72. Nd3
{[%clk 0:00:09]} Bg3 {[%clk 0:00:08]} 73. Nc1 {[%clk 0:00:09]} Bh4 {[%clk
0:00:05]} 74. Nd3 {[%clk 0:00:09]} c2+ {[%clk 0:00:05]} 75. Kxc2 {[%clk
0:00:10]} Kxa2 {[%clk 0:00:06]} 76. Nc5 {[%clk 0:00:10]} Be7 {[%clk 0:00:06]}
1/2-1/2

[Variant "Standard"]
[Site "Europe Echecs"]

[Event "Champions Chess Tour Finals 2024"]
[Date "2024.12.17"]
[White "Carlsen, Magnus"]
[Black "So, Wesley"]
[WhiteElo "2838"]
[BlackElo "2826"]
[Round "3.1"]
[Result "0-1"]
[TimeControl "600+2"]

1. c4 {[%clk 0:10:00]} e5 {[%clk 0:09:51]} 2. g3 {[%clk 0:09:59]} Nf6 {[%clk
0:09:49]} 3. Bg2 {[%clk 0:09:57]} c6 {[%clk 0:09:38]} 4. d4 {[%clk 0:09:49]}
Bb4+ {[%clk 0:09:34]} 5. Bd2 {[%clk 0:09:49]} Bxd2+ {[%clk 0:09:34]} 6. Qxd2
{[%clk 0:09:49]} d6 {[%clk 0:09:34]} 7. Nc3 {[%clk 0:09:39]} O-O {[%clk
0:09:30]} 8. Rd1 {[%clk 0:08:34]} Nbd7 {[%clk 0:07:53]} 9. Nf3 {[%clk 0:07:15]}
e4 {[%clk 0:07:41]} 10. Ng5 {[%clk 0:06:44]} d5 {[%clk 0:07:33]} 11. cxd5 {[%clk
0:06:45]} cxd5 {[%clk 0:07:34]} 12. O-O {[%clk 0:06:21]} h6 {[%clk 0:07:33]} 13.
Nh3 {[%clk 0:06:21]} Re8 {[%clk 0:07:11]} 14. f3 {[%clk 0:06:20]} exf3 {[%clk
0:06:21]} 15. exf3 {[%clk 0:06:04]} Nf8 {[%clk 0:05:52]} 16. Nf4 {[%clk
0:05:57]} Qd6 {[%clk 0:05:42]} 17. Rfe1 {[%clk 0:05:50]} Bd7 {[%clk 0:05:11]}
18. Nd3 {[%clk 0:05:50]} Ng6 {[%clk 0:04:58]} 19. Bf1 {[%clk 0:05:38]} h5 {[%clk
0:04:28]} 20. Kf2 {[%clk 0:04:52]} h4 {[%clk 0:04:26]} 21. Nc5 {[%clk 0:04:52]}
Bc6 {[%clk 0:03:59]} 22. Bh3 {[%clk 0:04:33]} b6 {[%clk 0:03:31]} 23. Nd3 {[%clk
0:04:29]} Bd7 {[%clk 0:03:20]} 24. Bxd7 {[%clk 0:04:23]} Qxd7 {[%clk 0:03:11]}
25. g4 {[%clk 0:04:17]} Qd6 {[%clk 0:03:07]} 26. Kg2 {[%clk 0:04:14]} Nh7 {[%clk
0:02:55]} 27. f4 {[%clk 0:03:53]} Nf6 {[%clk 0:02:55]} 28. f5 {[%clk 0:02:51]}
Nf8 {[%clk 0:01:41]} 29. Qf4 {[%clk 0:02:50]} Qxf4 {[%clk 0:01:26]} 30. Nxf4
{[%clk 0:02:50]} Nxg4 {[%clk 0:01:27]} 31. Ncxd5 {[%clk 0:02:18]} Nh7 {[%clk
0:01:28]} 32. h3 {[%clk 0:01:17]} Nh6 {[%clk 0:01:29]} 33. f6 {[%clk 0:00:42]}
g5 {[%clk 0:01:31]} 34. Ne7+ {[%clk 0:00:35]} Kf8 {[%clk 0:01:29]} 35. Nfd5
{[%clk 0:00:35]} Nxf6 {[%clk 0:00:38]} 36. Nc7 {[%clk 0:00:30]} Rxe7 {[%clk
0:00:30]} 37. Nxa8 {[%clk 0:00:30]} Nd5 {[%clk 0:00:17]} 38. Re5 {[%clk
0:00:30]} Rxe5 {[%clk 0:00:18]} 0-1

[Variant "Standard"]
[Site "Europe Echecs"]

[Event "Champions Chess Tour Finals 2024"]
[Date "2024.12.17"]
[White "Vachier-Lagrave, Maxime"]
[Black "Nepomniachtchi, Ian"]
[WhiteElo "2763"]
[BlackElo "2758"]
[Round "3.1"]
[Result "1/2-1/2"]
[TimeControl "600+2"]

1. e4 {[%clk 0:10:03]} e5 {[%clk 0:10:02]} 2. Nf3 {[%clk 0:10:04]} Nf6 {[%clk
0:10:03]} 3. Nxe5 {[%clk 0:10:05]} d6 {[%clk 0:10:04]} 4. Nf3 {[%clk 0:10:06]}
Nxe4 {[%clk 0:10:05]} 5. Qe2 {[%clk 0:10:07]} Qe7 {[%clk 0:10:04]} 6. g3 {[%clk
0:10:07]} Nf6 {[%clk 0:09:55]} 7. Qxe7+ {[%clk 0:09:57]} Bxe7 {[%clk 0:09:55]}
8. Bg2 {[%clk 0:09:57]} d5 {[%clk 0:09:54]} 9. O-O {[%clk 0:09:56]} O-O {[%clk
0:09:50]} 10. d3 {[%clk 0:09:49]} Bd6 {[%clk 0:09:48]} 11. Re1 {[%clk 0:09:11]}
c6 {[%clk 0:09:45]} 12. a4 {[%clk 0:08:42]} a5 {[%clk 0:09:45]} 13. b3 {[%clk
0:08:31]} Na6 {[%clk 0:09:38]} 14. Bb2 {[%clk 0:08:29]} Nd7 {[%clk 0:09:19]} 15.
Re2 {[%clk 0:08:07]} Ndc5 {[%clk 0:09:07]} 16. Nc3 {[%clk 0:07:52]} Bg4 {[%clk
0:08:37]} 17. Nd1 {[%clk 0:07:24]} Rfe8 {[%clk 0:08:06]} 18. Ne3 {[%clk
0:07:19]} Bd7 {[%clk 0:07:47]} 19. d4 {[%clk 0:06:40]} Ne4 {[%clk 0:07:40]} 20.
c4 {[%clk 0:06:37]} Nb4 {[%clk 0:07:39]} 21. Rd1 {[%clk 0:05:59]} f6 {[%clk
0:07:23]} 22. Ne1 {[%clk 0:03:53]} Be6 {[%clk 0:06:26]} 23. Nd3 {[%clk 0:03:41]}
Nxd3 {[%clk 0:06:13]} 24. Rxd3 {[%clk 0:03:41]} Bf7 {[%clk 0:05:58]} 25. Rd1
{[%clk 0:03:32]} Bb4 {[%clk 0:05:31]} 26. cxd5 {[%clk 0:03:00]} cxd5 {[%clk
0:05:31]} 27. Rc1 {[%clk 0:03:01]} Nd2 {[%clk 0:04:41]} 28. Rc7 {[%clk 0:03:01]}
Bh5 {[%clk 0:03:38]} 29. Bxd5+ {[%clk 0:03:02]} Kh8 {[%clk 0:03:39]} 30. Rxd2
{[%clk 0:01:52]} Bxd2 {[%clk 0:03:40]} 31. Bxb7 {[%clk 0:01:52]} Ra7 {[%clk
0:03:14]} 32. d5 {[%clk 0:01:53]} Rb8 {[%clk 0:02:32]} 33. Rc8+ {[%clk 0:01:41]}
Rxc8 {[%clk 0:02:33]} 34. Bxc8 {[%clk 0:01:42]} Bb4 {[%clk 0:01:53]} 35. Kg2
{[%clk 0:00:50]} Rc7 {[%clk 0:01:47]} 36. Be6 {[%clk 0:00:49]} Bf7 {[%clk
0:01:44]} 37. Bxf7 {[%clk 0:00:45]} Rxf7 {[%clk 0:01:45]} 38. Kf3 {[%clk
0:00:40]} Kg8 {[%clk 0:01:25]} 39. Bd4 {[%clk 0:00:33]} Rb7 {[%clk 0:01:23]} 40.
Nc4 {[%clk 0:00:33]} Rd7 {[%clk 0:01:04]} 41. Ke4 {[%clk 0:00:34]} Re7+ {[%clk
0:01:05]} 42. Kd3 {[%clk 0:00:35]} Re1 {[%clk 0:00:55]} 43. Bb6 {[%clk 0:00:34]}
Rd1+ {[%clk 0:00:52]} 44. Ke4 {[%clk 0:00:32]} Re1+ {[%clk 0:00:45]} 45. Kd3
{[%clk 0:00:27]} Rd1+ {[%clk 0:00:46]} 46. Ke4 {[%clk 0:00:28]} Re1+ {[%clk
0:00:46]} 1/2-1/2

[Variant "Standard"]
[Site "Europe Echecs"]

[Event "Champions Chess Tour Finals 2024"]
[Date "2024.12.17"]
[White "Lazavik, Denis"]
[Black "Firouzja, Alireza"]
[WhiteElo "2553"]
[BlackElo "2756"]
[Round "3.2"]
[Result "1-0"]
[TimeControl "600+2"]

1. c4 {[%clk 0:09:59]} e6 {[%clk 0:09:56]} 2. Nf3 {[%clk 0:09:57]} d5 {[%clk
0:09:57]} 3. cxd5 {[%clk 0:09:54]} exd5 {[%clk 0:09:57]} 4. g3 {[%clk 0:09:55]}
Nf6 {[%clk 0:09:41]} 5. Bg2 {[%clk 0:09:54]} Bd6 {[%clk 0:08:54]} 6. O-O {[%clk
0:09:53]} O-O {[%clk 0:08:54]} 7. Nc3 {[%clk 0:09:47]} Re8 {[%clk 0:08:54]} 8.
d3 {[%clk 0:09:35]} h6 {[%clk 0:08:44]} 9. a3 {[%clk 0:08:56]} a5 {[%clk
0:08:01]} 10. Qc2 {[%clk 0:08:52]} Na6 {[%clk 0:07:25]} 11. e4 {[%clk 0:08:32]}
c6 {[%clk 0:07:15]} 12. Re1 {[%clk 0:08:18]} Bg4 {[%clk 0:06:47]} 13. h3 {[%clk
0:08:14]} Bxf3 {[%clk 0:06:27]} 14. Bxf3 {[%clk 0:08:14]} Be5 {[%clk 0:06:28]}
15. Bg2 {[%clk 0:07:42]} Bd4 {[%clk 0:05:48]} 16. Re2 {[%clk 0:06:10]} Nc5
{[%clk 0:05:06]} 17. Bd2 {[%clk 0:04:40]} Qb6 {[%clk 0:05:00]} 18. Rf1 {[%clk
0:04:23]} Qb3 {[%clk 0:04:47]} 19. Qb1 {[%clk 0:01:38]} dxe4 {[%clk 0:04:43]}
20. dxe4 {[%clk 0:01:39]} Rad8 {[%clk 0:04:44]} 21. Be3 {[%clk 0:00:53]} Bxc3
{[%clk 0:03:47]} 22. Bxc5 {[%clk 0:00:51]} Qb5 {[%clk 0:03:48]} 23. Rc2 {[%clk
0:00:43]} Qxc5 {[%clk 0:03:48]} 24. Rxc3 {[%clk 0:00:44]} Qd4 {[%clk 0:03:43]}
25. Re1 {[%clk 0:00:41]} Nd7 {[%clk 0:02:45]} 26. Rd3 {[%clk 0:00:36]} Qb6
{[%clk 0:02:46]} 27. Qc2 {[%clk 0:00:36]} Ne5 {[%clk 0:02:38]} 28. Rb3 {[%clk
0:00:34]} Qa7 {[%clk 0:02:22]} 29. Kh2 {[%clk 0:00:29]} a4 {[%clk 0:02:12]} 30.
Rbe3 {[%clk 0:00:25]} Qd4 {[%clk 0:00:42]} 31. f4 {[%clk 0:00:19]} Nd3 {[%clk
0:00:43]} 32. R1e2 {[%clk 0:00:18]} Qc5 {[%clk 0:00:27]} 33. e5 {[%clk 0:00:10]}
Qb6 {[%clk 0:00:08]} 34. h4 {[%clk 0:00:09]} Qb3 {[%clk 0:00:08]} 35. Be4 {[%clk
0:00:08]} Qxc2 {[%clk 0:00:03]} 36. Rxc2 {[%clk 0:00:09]} Nxe5 {[%clk 0:00:03]}
37. fxe5 {[%clk 0:00:10]} Rd4 {[%clk 0:00:04]} 38. Bf3 {[%clk 0:00:09]} g5
{[%clk 0:00:03]} 39. hxg5 {[%clk 0:00:09]} hxg5 {[%clk 0:00:05]} 40. Rce2 {[%clk
0:00:11]} g4 {[%clk 0:00:05]} 41. Be4 {[%clk 0:00:08]} Kg7 {[%clk 0:00:06]} 42.
Bc2 {[%clk 0:00:09]} Rh8+ {[%clk 0:00:04]} 43. Kg2 {[%clk 0:00:10]} Rhd8 {[%clk
0:00:04]} 44. Re4 {[%clk 0:00:11]} Rxe4 {[%clk 0:00:06]} 45. Bxe4 {[%clk
0:00:12]} Kh6 {[%clk 0:00:06]} 46. Kf2 {[%clk 0:00:12]} Re8 {[%clk 0:00:06]} 47.
Bc2 {[%clk 0:00:13]} b5 {[%clk 0:00:07]} 48. Re4 {[%clk 0:00:14]} Kg5 {[%clk
0:00:08]} 49. Bd1 {[%clk 0:00:14]} Rd8 {[%clk 0:00:05]} 50. Bxg4 {[%clk
0:00:13]} Rd2+ {[%clk 0:00:06]} 51. Re2 {[%clk 0:00:14]} Rd4 {[%clk 0:00:05]}
52. Bf3 {[%clk 0:00:15]} c5 {[%clk 0:00:06]} 53. Rc2 {[%clk 0:00:11]} c4 {[%clk
0:00:04]} 54. Bc6 {[%clk 0:00:10]} c3 {[%clk 0:00:04]} 55. bxc3 {[%clk 0:00:10]}
1-0

[Variant "Standard"]
[Site "Europe Echecs"]

[Event "Champions Chess Tour Finals 2024"]
[Date "2024.12.17"]
[White "Aronian, Levon"]
[Black "Keymer, Vincent"]
[WhiteElo "2818"]
[BlackElo "2649"]
[Round "3.2"]
[Result "0-1"]
[TimeControl "600+2"]

1. e4 {[%clk 0:10:02]} e5 {[%clk 0:10:03]} 2. Nf3 {[%clk 0:10:02]} Nc6 {[%clk
0:10:04]} 3. Bc4 {[%clk 0:10:03]} Nf6 {[%clk 0:10:04]} 4. d3 {[%clk 0:10:03]}
Bc5 {[%clk 0:10:04]} 5. Nc3 {[%clk 0:10:04]} h6 {[%clk 0:10:00]} 6. Be3 {[%clk
0:09:38]} Bb6 {[%clk 0:09:52]} 7. Nd5 {[%clk 0:09:18]} d6 {[%clk 0:09:49]} 8.
Nxb6 {[%clk 0:09:10]} axb6 {[%clk 0:09:49]} 9. a3 {[%clk 0:09:11]} O-O {[%clk
0:09:42]} 10. O-O {[%clk 0:09:04]} Re8 {[%clk 0:09:43]} 11. Re1 {[%clk 0:08:26]}
Be6 {[%clk 0:09:20]} 12. Bb5 {[%clk 0:08:08]} Bd7 {[%clk 0:09:21]} 13. Bd2
{[%clk 0:07:05]} Ne7 {[%clk 0:09:17]} 14. Bxd7 {[%clk 0:07:05]} Qxd7 {[%clk
0:09:18]} 15. d4 {[%clk 0:06:55]} exd4 {[%clk 0:08:44]} 16. Nxd4 {[%clk
0:06:55]} c5 {[%clk 0:08:01]} 17. Nb3 {[%clk 0:05:59]} Ng6 {[%clk 0:07:20]} 18.
f3 {[%clk 0:05:58]} d5 {[%clk 0:07:20]} 19. Bc3 {[%clk 0:05:54]} d4 {[%clk
0:06:45]} 20. Bd2 {[%clk 0:05:55]} Qb5 {[%clk 0:05:57]} 21. Qe2 {[%clk 0:05:41]}
Qa4 {[%clk 0:05:58]} 22. Qf2 {[%clk 0:04:48]} Ne5 {[%clk 0:05:36]} 23. Bf4
{[%clk 0:04:25]} Ng6 {[%clk 0:04:30]} 24. Bg3 {[%clk 0:04:15]} Nh5 {[%clk
0:04:03]} 25. Rac1 {[%clk 0:04:16]} d3 {[%clk 0:03:13]} 26. Rcd1 {[%clk
0:03:22]} Ngf4 {[%clk 0:02:26]} 27. Nc1 {[%clk 0:02:23]} dxc2 {[%clk 0:02:03]}
28. Rd2 {[%clk 0:02:25]} Rad8 {[%clk 0:01:57]} 29. Rxc2 {[%clk 0:02:25]} Rd7
{[%clk 0:01:48]} 30. Rd2 {[%clk 0:01:48]} Red8 {[%clk 0:01:48]} 31. Rxd7 {[%clk
0:01:37]} Rxd7 {[%clk 0:01:49]} 32. Bxf4 {[%clk 0:01:25]} Nxf4 {[%clk 0:01:49]}
33. Qe3 {[%clk 0:01:26]} Rd1 {[%clk 0:00:49]} 34. g3 {[%clk 0:01:06]} Ne6 {[%clk
0:00:49]} 35. Kf2 {[%clk 0:00:24]} Qc2+ {[%clk 0:00:30]} 36. Ne2 {[%clk
0:00:25]} Rxe1 {[%clk 0:00:14]} 37. Kxe1 {[%clk 0:00:26]} Qxb2 {[%clk 0:00:15]}
38. f4 {[%clk 0:00:28]} Nd4 {[%clk 0:00:10]} 39. Nxd4 {[%clk 0:00:18]} cxd4
{[%clk 0:00:11]} 40. Qd3 {[%clk 0:00:19]} Qxh2 {[%clk 0:00:10]} 41. e5 {[%clk
0:00:07]} Qb2 {[%clk 0:00:08]} 42. Kd1 {[%clk 0:00:06]} b5 {[%clk 0:00:05]} 43.
Qf5 {[%clk 0:00:04]} Qb3+ {[%clk 0:00:04]} 44. Kd2 {[%clk 0:00:05]} Qc3+ {[%clk
0:00:05]} 45. Ke2 {[%clk 0:00:07]} Qc4+ {[%clk 0:00:05]} 46. Kd2 {[%clk
0:00:08]} Qc3+ {[%clk 0:00:05]} 47. Ke2 {[%clk 0:00:10]} g6 {[%clk 0:00:06]} 48.
Qd7 {[%clk 0:00:10]} Qxa3 {[%clk 0:00:06]} 49. Qxd4 {[%clk 0:00:08]} Qa2+ {[%clk
0:00:07]} 50. Ke1 {[%clk 0:00:04]} Qc4 {[%clk 0:00:06]} 51. Qd8+ {[%clk
0:00:05]} Kh7 {[%clk 0:00:07]} 52. Qe7 {[%clk 0:00:04]} b6 {[%clk 0:00:08]} 53.
f5 {[%clk 0:00:03]} gxf5 {[%clk 0:00:08]} 54. Qd7 {[%clk 0:00:05]} Qe6 {[%clk
0:00:03]} 55. Qxb5 {[%clk 0:00:06]} f6 {[%clk 0:00:05]} 56. Kf2 {[%clk 0:00:03]}
fxe5 {[%clk 0:00:05]} 57. Qd3 {[%clk 0:00:04]} Kg7 {[%clk 0:00:06]} 58. Qd8
{[%clk 0:00:04]} Qf6 {[%clk 0:00:05]} 59. Qd7+ {[%clk 0:00:04]} Qf7 {[%clk
0:00:05]} 60. Qd6 {[%clk 0:00:06]} e4 {[%clk 0:00:05]} 61. Qxb6 {[%clk 0:00:06]}
Qe7 {[%clk 0:00:05]} 62. Qc6 {[%clk 0:00:05]} h5 {[%clk 0:00:06]} 63. Qc8 {[%clk
0:00:04]} Qf6 {[%clk 0:00:07]} 64. Qc7+ {[%clk 0:00:04]} Kg6 {[%clk 0:00:07]}
65. Qf4 {[%clk 0:00:04]} Qd4+ {[%clk 0:00:07]} 66. Kg2 {[%clk 0:00:05]} Qb2+
{[%clk 0:00:06]} 67. Kh3 {[%clk 0:00:06]} Qf6 {[%clk 0:00:06]} 68. Qb8 {[%clk
0:00:05]} Qe6 {[%clk 0:00:07]} 69. Kg2 {[%clk 0:00:04]} e3 {[%clk 0:00:05]} 70.
Kf1 {[%clk 0:00:04]} Qc4+ {[%clk 0:00:07]} 71. Kg1 {[%clk 0:00:04]} Qc1+ {[%clk
0:00:06]} 72. Kg2 {[%clk 0:00:03]} Qc6+ {[%clk 0:00:07]} 73. Kg1 {[%clk
0:00:03]} Qe6 {[%clk 0:00:05]} 74. Kf1 {[%clk 0:00:04]} Qc4+ {[%clk 0:00:05]}
75. Kg2 {[%clk 0:00:04]} Qc2+ {[%clk 0:00:05]} 76. Kh3 {[%clk 0:00:05]} Qc6
{[%clk 0:00:05]} 77. Kh2 {[%clk 0:00:04]} h4 {[%clk 0:00:06]} 78. Qg8+ {[%clk
0:00:05]} Kf6 {[%clk 0:00:06]} 79. Qh8+ {[%clk 0:00:05]} Ke7 {[%clk 0:00:05]}
80. Qxh4+ {[%clk 0:00:05]} Qf6 {[%clk 0:00:04]} 81. Qb4+ {[%clk 0:00:05]} Qd6
{[%clk 0:00:04]} 82. Qh4+ {[%clk 0:00:05]} Kd7 {[%clk 0:00:05]} 83. Qg5 {[%clk
0:00:04]} e2 {[%clk 0:00:05]} 84. Qg7+ {[%clk 0:00:03]} Qe7 {[%clk 0:00:06]} 85.
Qd4+ {[%clk 0:00:05]} Ke8 {[%clk 0:00:05]} 86. Qh8+ {[%clk 0:00:05]} Kd7 {[%clk
0:00:06]} 87. Qd4+ {[%clk 0:00:06]} Qd6 {[%clk 0:00:06]} 88. Qg7+ {[%clk
0:00:06]} Kc6 {[%clk 0:00:06]} 89. Qc3+ {[%clk 0:00:05]} Kd7 {[%clk 0:00:04]}
90. Qg7+ {[%clk 0:00:06]} Kc8 {[%clk 0:00:05]} 91. Qh8+ {[%clk 0:00:05]} Qd8
{[%clk 0:00:05]} 92. Qc3+ {[%clk 0:00:04]} Qc7 {[%clk 0:00:06]} 93. Qe1 {[%clk
0:00:03]} Qe5 {[%clk 0:00:06]} 94. Kg2 {[%clk 0:00:01]} Qe3 {[%clk 0:00:06]} 95.
Kh3 0-1

[Variant "Standard"]
[Site "Europe Echecs"]